bitfinex/quotes_SOLUSD_20240906
["timestamp","ask_amount","ask_price","bid_price","bid_amount"]
[1725631924953,7.7111,129.69,129.64,7.7136]
[1725631925172,57.8129,129.73,129.6,50.8531428]
[1725631925173,19.2672,129.76,129.65,20.82406997]
[1725631925362,6.1091,129.79,129.65,1.54206997]
[1725631925665,7.709,129.72,129.67,7.7113]
[1725631925961,0.63846939,129.76,129.66,19.2807]
[1725631926263,7.711,129.69,129.64,7.7131]
[1725631926572,7.711,129.69,129.6,50.8531428]
[1725631926573,7.7125,129.66,129.62,7.7144]
[1725631926867,7.7108,129.69,129.64,7.7134]
[1725631927072,20.0,129.78,129.6,50.8531428]
[1725631927073,7.7099,129.71,129.66,26.993]
[1725631927267,0.63846939,129.75,129.6,0.8531428]
[1725631927439,7.7147,129.63,129.6,0.8531428]
[1725631927643,10.63846939,129.75,129.6,0.8531428]
[1725631927946,7.7136,129.65,129.61,19.2876]
[1725631928178,0.63846939,129.7,129.6,0.8531428]
[1725631928482,7.7129,129.66,129.61,9.25771339]
[1725631928700,0.63846939,129.77,129.64,19.2833]
[1725631928984,19.2688,129.75,129.67,19.279]
[1725631929158,7.7087,129.73,129.68,9.25229772]
[1725631929481,7.7072,129.75,129.7,7.7099]
[1725631929685,3.89634678,129.81,129.71,1.54138861]
[1725631929870,7.7049,129.79,129.74,7.7071]
[1725631930183,3.996,129.8,129.7,1.54102316]
[1725631930390,7.7084,129.73,129.7,1.54129868]
[1725631930557,7.7072,129.75,129.71,7.7094]
[1725631931160,7.7066,129.76,129.71,7.7094]
[1725631931359,3.996,129.8,129.72,1.54132368]
[1725631931583,3.996,129.8,129.72,7.7087]
[1725631931762,3.996,129.8,129.73,1.54106575]
[1725631931957,3.996,129.8,129.71,19.273]
[1725631932157,7.7077,129.75,129.71,19.273]
[1725631932385,7.7084,129.73,129.68,19.2779]
[1725631932687,7.7052,129.79,129.73,7.7078]
[1725631932893,3.996,129.8,129.72,19.2714]
[1725631933056,3.996,129.8,129.73,7.7082]
[1725631933261,7.706,129.77,129.73,7.7082]
[1725631933683,3.996,129.8,129.69,19.2764]
[1725631933865,3.996,129.8,129.7,1.54125114]
[1725631934076,3.996,129.8,129.69,19.2764]
[1725631934077,19.2632,129.79,129.69,19.2764]
[1725631934264,3.996,129.8,129.69,20.81770474]
[1725631934265,19.2657,129.77,129.69,20.81770474]
[1725631934469,7.7077,129.74,129.69,26.9866]
[1725631934867,23.2568,129.8,129.7,1.54140986]
[1725631935065,23.2568,129.8,129.72,19.2717]
[1725631935267,38.5263,129.79,129.66,19.2809]
[1725631935589,7.7101,129.7,129.66,19.2809]
[1725631936389,7.7101,129.7,129.64,1.54191686]
[1725631936390,19.2757,129.7,129.64,1.54191686]
[1725631936687,19.2715,129.73,129.64,7.7136]
[1725631936885,7.709,129.72,129.67,7.7117]
[1725631937069,7.7088,129.73,129.68,1.54168773]
[1725631937394,7.7097,129.71,129.66,26.9925]
[1725631937686,7.7089,129.72,129.67,9.25327346]
[1725631937867,7.7096,129.71,129.66,28.53458614]
[1725631938267,7.7105,129.7,129.66,19.2806]
[1725631938693,19.2728,129.72,129.63,19.2855]
[1725631938874,7.7106,129.7,129.64,1.54197725]
[1725631939077,7.7094,129.72,129.65,20.82379126]
[1725631939280,7.7069,129.76,129.71,7.7094]
[1725631939472,7.7084,129.73,129.71,1.5412471]
[1725631939678,7.7099,129.71,129.66,19.2806]
[1725631939878,19.2731,129.72,129.63,19.2848]
[1725631940184,7.7096,129.71,129.66,7.712]
[1725631940988,7.7114,129.68,129.64,7.7135]
[1725631941172,7.711,129.69,129.64,9.25569959]
[1725631941376,7.7116,129.68,129.63,7.7138]
[1725631941580,7.7125,129.66,129.62,27.0012]
[1725631941777,19.2773,129.69,129.6,0.8531428]
[1725631941969,7.7132,129.65,129.6,8.5687428]
[1725631942175,0.63846939,129.68,129.6,0.8531428]
[1725631942375,39.20046939,129.67,129.52,6.2109]
[1725631942579,7.7161,129.6,129.53,69.3005]
[1725631942798,7.7156,129.61,129.56,7.7183]
[1725631942967,7.7155,129.61,129.56,7.7183]
[1725631943168,38.562,129.67,129.55,19.2968]
[1725631943371,6.3329,129.66,129.51,19.3027]
[1725631943566,6.3329,129.66,129.47,7.3007428]
[1725631943567,7.7189,129.56,129.47,7.3007428]
[1725631943804,0.63846939,129.65,129.5,19.3048]
[1725631943972,0.63846939,129.65,129.5,1.54341874]
[1725631943973,0.63846939,129.64,129.5,1.54341874]
[1725631944171,20.63846939,129.64,129.51,9.26469635]
[1725631944394,45.0,129.63,129.52,1.54356829]
[1725631944593,20.0,129.62,129.52,9.26406829]
[1725631944793,7.7163,129.6,129.52,1.54356829]
[1725631945114,10.0,129.73,129.52,51.54356829]
[1725631945271,50.0,129.78,129.54,50.0]
[1725631945272,3.40627411,129.69,129.54,50.0]
[1725631945576,10.0,129.75,129.59,7.7163]
[1725631945577,7.7114,129.68,129.59,7.7163]
[1725631945774,7.7114,129.68,129.6,7.7159]
[1725631945977,22.6861,129.71,129.61,20.8300755]
[1725631946198,22.6861,129.71,129.61,27.0025]
[1725631946407,22.6861,129.71,129.62,1.54235109]
[1725631946605,6.2219,129.76,129.64,19.2832]
[1725631946919,7.7084,129.73,129.64,28.53839914]
[1725631947101,7.7084,129.73,129.64,20.82529914]
[1725631947406,0.63846939,129.75,129.64,26.9965]
[1725631947781,7.7096,129.71,129.64,19.2832]
[1725631947981,7.7114,129.68,129.6,19.29]
[1725631948375,7.7104,129.7,129.62,7.7147]
[1725631948583,7.7104,129.7,129.61,1.54253054]
[1725631948786,7.7104,129.7,129.61,1.54246555]
[1725631949099,8.98861213,129.76,129.66,7.7123]
[1725631949100,6.2219,129.76,129.66,7.7123]
[1725631949274,7.7091,129.72,129.64,7.7133]
[1725631949478,7.7095,129.71,129.64,7.7133]
[1725631949682,7.7099,129.71,129.64,7.7135]
[1725631949907,6.86036939,129.76,129.65,1.54205276]
[1725631950075,7.7084,129.73,129.67,7.7117]
[1725631950403,7.7084,129.73,129.66,7.7123]
[1725631950611,6.2219,129.76,129.67,7.7116]
[1725631950777,7.7069,129.76,129.69,7.7103]
[1725631950979,23.2566,129.8,129.7,1.54142452]
[1725631950980,15.80433564,129.79,129.7,1.54142452]
[1725631951181,7.7069,129.76,129.69,19.2759]
[1725631951395,16.44280503,129.79,129.68,7.711]
[1725631951704,15.80433564,129.79,129.74,7.7076]
[1725631951904,3.996,129.8,129.75,1.54095081]
[1725631952084,3.996,129.8,129.74,19.2682]
[1725631952085,3.996,129.8,129.74,26.9754]
[1725631952282,11.7002,129.8,129.74,26.9754]
[1725631952690,3.996,129.8,129.74,26.9754]
[1725631952894,3.996,129.8,129.69,19.2753]
[1725631953097,3.996,129.8,129.7,1.54130504]
[1725631953300,0.63846939,129.79,129.69,19.2753]
[1725631953506,7.7078,129.74,129.67,7.7113]
[1725631953815,0.63846939,129.79,129.66,50.0]
[1725631954017,3.996,129.8,129.7,50.0]
[1725631954176,3.996,129.8,129.74,19.2689]
[1725631954379,3.996,129.8,129.75,9.2478056]
[1725631954807,3.996,129.8,129.77,19.2646]
[1725631955283,3.996,129.8,129.77,20.80529375]
[1725631955480,3.996,129.8,129.74,7.7073]
[1725631955700,3.996,129.8,129.73,7.7082]
[1725631956206,3.996,129.8,129.74,1.54103654]
[1725631956414,3.996,129.8,129.75,19.267]
[1725631956817,3.996,129.8,129.76,9.24710197]
[1725631957021,3.996,129.8,129.76,1.54070197]
[1725631957326,3.996,129.8,129.77,9.246489]
[1725631957485,3.996,129.8,129.76,7.7064]
[1725631957689,3.996,129.8,129.76,1.54064622]
[1725631957887,3.996,129.8,129.73,50.0]
[1725631957888,3.996,129.8,129.78,7.7053]
[1725631958088,3.996,129.8,129.74,19.2692]
[1725631958390,7.7047,129.79,129.74,19.2692]
[1725631958593,11.7002,129.8,129.74,26.9769]
[1725631958979,3.996,129.8,129.72,7.7085]
[1725631959208,3.996,129.8,129.71,19.2736]
[1725631959209,3.996,129.8,129.73,9.24907233]
[1725631959425,3.996,129.8,129.74,1.54073356]
[1725631959613,7.7052,129.79,129.75,1.54077877]
[1725631959926,7.7052,129.79,129.74,7.7076]
[1725631960288,3.996,129.8,129.75,9.24735914]
[1725631960484,7.7047,129.79,129.75,1.54085914]
[1725631961093,3.996,129.8,129.7,57.8223]
[1725631961311,3.996,129.8,129.71,51.54099928]
[1725631961499,3.996,129.8,129.73,7.7082]
[1725631961809,3.996,129.8,129.7,19.2739]
[1725631962011,7.707,129.76,129.7,26.9835]
[1725631962197,7.7065,129.76,129.71,7.7092]
[1725631962394,3.996,129.8,129.71,1.54120284]
[1725631962596,3.996,129.8,129.76,19.2651]
[1725631962810,3.996,129.8,129.77,9.24629162]
[1725631963123,3.996,129.8,129.77,1.54049162]
[1725631963497,3.996,129.8,129.74,7.7076]
[1725631963698,3.996,129.8,129.7,20.81538389]
[1725631964021,7.706,129.77,129.72,7.7088]
[1725631964389,23.2571,129.8,129.7,19.2748]
[1725631964583,23.2571,129.8,129.65,88.5628]
[1725631964584,7.7093,129.72,129.67,26.9909]
[1725631964788,7.7096,129.71,129.67,19.2792]
[1725631965016,7.709,129.72,129.67,26.9909]
[1725631965189,19.2674,129.76,129.68,9.25255504]
[1725631965190,7.7084,129.73,129.68,9.25255504]
[1725631965391,19.2702,129.74,129.64,19.2833]
[1725631965745,19.2702,129.74,129.66,26.9926]
[1725631965902,19.2702,129.74,129.67,1.54163538]
[1725631966225,19.2702,129.74,129.63,25.485]
[1725631966538,39.18026939,129.73,129.58,6.0961]
[1725631966824,7.7131,129.65,129.6,7.7159]
[1725631967028,0.63846939,129.7,129.59,19.2906]
[1725631967197,7.7143,129.63,129.59,19.2906]
[1725631967395,7.7143,129.63,129.57,7.7177]
[1725631967820,7.7136,129.65,129.59,7.716]
[1725631968122,7.7125,129.66,129.6,9.25815807]
[1725631968324,19.2777,129.69,129.61,1.54236387]
[1725631968534,58.5418,129.73,129.58,19.2918]
[1725631968824,7.7113,129.68,129.62,7.7147]
[1725631968994,58.5418,129.73,129.63,9.25620137]
[1725631969198,58.5418,129.73,129.61,19.2884]
[1725631969199,7.7119,129.67,129.62,9.25692098]
[1725631969440,58.5418,129.73,129.61,19.2884]
[1725631969620,58.5418,129.73,129.62,1.54227749]
[1725631969621,7.7119,129.67,129.62,1.54227749]
[1725631969928,7.7135,129.65,129.57,19.2934]
[1725631970246,7.7137,129.64,129.58,7.7166]
[1725631970399,0.63846939,129.68,129.57,19.2934]
[1725631970602,7.7167,129.59,129.53,19.2991]
[1725631970927,0.63846939,129.67,129.51,7.721]
[1725631970928,6.5422,129.66,129.51,7.721]
[1725631971102,20.63846939,129.65,129.51,7.721]
[1725631971431,7.717,129.59,129.52,20.8452114]
[1725631972016,7.7175,129.58,129.52,28.5660114]
[1725631972219,19.2871,129.63,129.52,19.3017]
[1725631972415,65.63846939,129.62,129.52,19.3017]
[1725631972810,65.0,129.62,129.52,19.3017]
[1725631973018,7.7172,129.59,129.53,9.26316671]
[1725631973225,20.0,129.62,129.53,1.54356671]
[1725631973644,7.7172,129.58,129.52,19.3017]
[1725631974015,7.7185,129.56,129.49,19.3064]
[1725631974433,20.63846939,129.62,129.5,7.7219]
[1725631974434,19.2903,129.6,129.5,7.7219]
[1725631974714,7.7192,129.55,129.49,27.0289]
[1725631974901,19.2903,129.6,129.5,1.54388136]
[1725631975104,7.7178,129.57,129.51,7.7208]
[1725631975511,7.7198,129.54,129.49,19.3064]
[1725631976032,7.7202,129.53,129.47,8.5768428]
[1725631976233,7.7202,129.53,129.48,9.26718977]
[1725631976448,7.7202,129.53,129.48,7.7231]
[1725631976732,7.7202,129.53,129.48,9.26722269]
[1725631976959,7.72,129.54,129.48,27.0294]
[1725631977147,7.719,129.55,129.5,7.7219]
[1725631977436,7.7178,129.58,129.53,7.72]
[1725631977603,20.0,129.59,129.51,19.3034]
[1725631977809,19.2888,129.61,129.51,27.0242]
[1725631977810,7.7186,129.56,129.51,27.0242]
[1725631978326,7.7202,129.53,129.48,7.7231]
[1725631978513,7.7196,129.54,129.49,7.7225]
[1725631978851,7.7196,129.54,129.49,27.0277]
[1725631979013,19.2958,129.57,129.47,0.8531428]
[1725631979336,19.2958,129.57,129.48,1.54387288]
[1725631979507,7.7194,129.55,129.49,7.7223]
[1725631979707,7.7191,129.55,129.49,1.54385182]
[1725631979934,39.92866939,129.6,129.48,20.85041762]
[1725631980142,7.7185,129.56,129.5,7.7219]
[1725631980428,20.63846939,129.6,129.47,0.8531428]
[1725631980607,25.7315,129.56,129.47,0.8531428]
[1725631980815,20.0,129.55,129.47,0.8531428]
[1725631981016,20.63846939,129.55,129.47,0.8531428]
[1725631981314,20.0,129.55,129.47,0.8531428]
[1725631981713,20.0,129.55,129.42,19.3165]
[1725631981714,7.7232,129.48,129.42,19.3165]
[1725631981932,7.7232,129.48,129.39,65.0]
[1725631981933,7.7223,129.5,129.44,19.3129]
[1725631982242,7.7269,129.42,129.39,15.0]
[1725631982450,7.7269,129.42,129.34,0.8531428]
[1725631982451,22.4288,129.45,129.34,0.8531428]
[1725631982612,7.7309,129.35,129.34,0.8531428]
[1725631983256,7.7309,129.35,129.28,1.54647948]
[1725631983453,20.0,129.34,129.24,13.5]
[1725631983739,58.6378,129.41,129.26,19.3402]
[1725631983740,0.63846939,129.4,129.26,19.3402]
[1725631983920,0.63846939,129.39,129.26,19.3402]
[1725631984129,20.0,129.39,129.31,7.733]
[1725631984436,20.63846939,129.39,129.26,50.0]
[1725631984744,15.21822959,129.44,129.3,50.0]
[1725631984920,15.21822959,129.44,129.38,7.729]
[1725631985240,22.4288,129.45,129.37,7.7297]
[1725631985435,22.4288,129.45,129.35,19.326]
[1725631985623,22.4288,129.45,129.37,7.7293]
[1725631985942,22.4288,129.45,129.28,32.5223]
[1725631985943,0.63846939,129.44,129.29,50.0]
[1725631986135,22.4288,129.45,129.36,7.7302]
[1725631986439,0.63846939,129.44,129.28,50.0]
[1725631986649,0.63846939,129.44,129.33,19.3291]
[1725631987018,22.4288,129.45,129.36,19.3249]
[1725631987221,20.0,129.44,129.36,19.3249]
[1725631987531,22.6128,129.51,129.43,7.726]
[1725631987855,22.6128,129.51,129.42,19.316]
[1725631988139,10.0,129.57,129.45,19.3116]
[1725631988140,0.63846939,129.54,129.45,19.3116]
[1725631988349,15.41732425,129.56,129.46,7.7243]
[1725631988513,15.41732425,129.56,129.46,7.7242]
[1725631988714,15.41732425,129.56,129.48,19.3071]
[1725631988932,15.41732425,129.56,129.5,7.7219]
[1725631989218,15.41732425,129.56,129.43,19.314]
[1725631989537,15.41732425,129.56,129.45,19.3118]
[1725631989746,16.05579364,129.56,129.45,19.3118]
[1725631990146,16.05579364,129.56,129.46,7.7243]
[1725631990349,16.05579364,129.56,129.42,7.7267]
[1725631990641,16.05579364,129.56,129.38,50.0]
[1725631990838,7.722,129.5,129.44,19.3132]
[1725631991025,7.724,129.47,129.41,7.7267]
[1725631991223,7.7245,129.46,129.4,27.0465]
[1725631991423,0.63846939,129.46,129.4,27.0465]
[1725631991625,19.3064,129.5,129.36,19.3257]
[1725631991968,19.3064,129.5,129.28,50.0]
[1725631991969,19.3151,129.44,129.28,50.0]
[1725631992241,19.3151,129.44,129.31,27.0661]
[1725631992242,20.0,129.43,129.31,27.0661]
[1725631992419,7.7273,129.42,129.35,7.7306]
[1725631992737,20.0,129.41,129.3,19.3337]
[1725631992948,0.63846939,129.4,129.3,19.3337]
[1725631993119,0.63846939,129.4,129.31,7.7327]
[1725631993120,7.7291,129.39,129.31,7.7327]
[1725631993320,7.7299,129.37,129.3,19.3337]
[1725631993619,65.0,129.41,129.26,1.54614494]
[1725631993620,20.63846939,129.36,129.26,19.3398]
[1725631993816,7.7321,129.34,129.27,7.7357]
[1725631994033,16.0877722,129.4,129.29,19.336]
[1725631994344,7.7304,129.36,129.3,7.7339]
[1725631995021,7.7303,129.37,129.31,7.7332]
[1725631995216,80.47915355,129.41,129.34,7.7314]
[1725631995543,35.47915355,129.41,129.32,1.54605095]
[1725631995747,7.7305,129.36,129.3,7.7333]
[1725631995948,35.47915355,129.41,129.31,1.54644301]
[1725631996155,35.47915355,129.41,129.33,19.3301]
[1725631996448,7.7291,129.38,129.33,19.3301]
[1725631996755,35.47915355,129.41,129.33,27.0621]
[1725631997044,35.47915355,129.41,129.24,52.1857]
[1725631997045,7.7304,129.36,129.3,19.3348]
[1725631997222,35.47915355,129.41,129.3,20.88117934]
[1725631997427,7.729,129.39,129.31,1.5461052]
[1725631997632,7.729,129.39,129.34,7.7315]
[1725631997937,21.6977,129.45,129.33,1.54590523]
[1725631997938,7.728,129.4,129.33,1.54590523]
[1725631998129,7.7282,129.4,129.35,7.7306]
[1725631998337,7.7282,129.4,129.34,7.7314]
[1725631998544,7.7282,129.4,129.35,7.7309]
[1725631998742,7.7282,129.4,129.34,7.7313]
[1725631998924,7.7285,129.39,129.33,19.3289]
[1725631999127,21.6977,129.45,129.36,19.3257]
[1725631999319,7.7261,129.43,129.38,7.7288]
[1725631999532,22.8229,129.45,129.4,7.7279]
[1725631999739,15.0979,129.45,129.32,38.6621]
[1725632000045,15.0979,129.45,129.35,27.0574]
[1725632000046,0.63846939,129.44,129.35,27.0574]
[1725632000349,7.7298,129.37,129.32,27.0637]
[1725632000555,7.7292,129.38,129.33,7.7319]
[1725632000924,7.7298,129.37,129.32,27.0641]
[1725632001152,7.729,129.39,129.33,9.27809111]
[1725632001337,15.0979,129.45,129.28,19.3369]
[1725632001338,19.3212,129.4,129.28,19.3369]
[1725632001527,7.7316,129.34,129.29,7.7344]
[1725632002027,7.7316,129.34,129.28,19.3369]
[1725632002235,7.7322,129.33,129.28,19.3369]
[1725632002430,0.63846939,129.37,129.28,19.3369]
[1725632002632,65.63846939,129.37,129.28,19.3369]
[1725632002848,7.7322,129.33,129.28,27.0717]
[1725632003026,7.7314,129.35,129.3,7.7339]
[1725632003233,19.3185,129.41,129.31,19.3333]
[1725632003432,0.63846939,129.42,129.31,1.54592949]
[1725632003655,7.7316,129.34,129.29,7.7344]
[1725632003847,19.3278,129.35,129.24,13.5]
[1725632004055,0.63846939,129.37,129.24,32.8426]
[1725632004239,0.63846939,129.37,129.28,7.735]
[1725632004436,7.7323,129.33,129.27,27.0745]
[1725632004635,7.7334,129.31,129.26,7.7363]
[1725632005057,57.9661,129.39,129.26,20.8873409]
[1725632005263,20.0,129.38,129.26,19.3405]
[1725632005446,0.63846939,129.37,129.29,19.3361]
[1725632005653,0.63846939,129.42,129.24,13.5]
[1725632005836,19.3191,129.41,129.25,50.0]
[1725632006041,7.7317,129.34,129.24,15.04621814]
[1725632006365,19.3234,129.38,129.27,19.3382]
[1725632006533,7.7351,129.28,129.24,13.5]
[1725632006732,22.1921,129.34,129.24,15.04716592]
[1725632006971,7.7352,129.28,129.24,13.5]
[1725632007153,19.3324,129.32,129.24,13.5]
[1725632007342,20.0,129.31,129.21,0.8531428]
[1725632007660,19.3363,129.29,129.21,0.8531428]
[1725632007868,7.7381,129.23,129.21,0.8531428]
[1725632008164,45.0,129.3,129.1,7.80318968]
[1725632008165,20.0,129.22,129.1,7.80318968]
[1725632008461,20.0,129.22,129.08,0.8531428]
[1725632008462,20.0,129.22,129.12,7.98636088]
[1725632008754,20.0,129.22,129.14,19.3577]
[1725632008967,14.72804437,129.77,129.15,1.54799382]
[1725632008968,20.0,129.26,129.15,1.54799382]
[1725632009256,19.3345,129.31,129.22,7.7387]
[1725632009468,19.3345,129.31,129.13,38.7191]
[1725632009469,20.63846939,129.3,129.13,38.7191]
[1725632009764,20.63846939,129.3,129.13,1.54786602]
[1725632009765,7.7368,129.26,129.13,1.54786602]
[1725632010058,0.63846939,129.28,129.13,38.719]
[1725632010260,7.7381,129.24,129.17,19.3541]
[1725632010443,0.63846939,129.29,129.14,50.0]
[1725632010652,0.63846939,129.29,129.19,19.3499]
[1725632010857,19.333,129.32,129.19,19.3499]
[1725632011061,20.0,129.31,129.2,1.54743057]
[1725632011251,7.7352,129.28,129.22,7.7381]
[1725632011450,7.7375,129.25,129.19,7.7401]
[1725632011641,7.737,129.25,129.2,7.7399]
[1725632011841,7.7383,129.23,129.18,19.3527]
[1725632012046,0.63846939,129.29,129.1,1.5475519]
[1725632012047,0.63846939,129.29,129.1,1.54786399]
[1725632012373,7.7398,129.21,129.15,7.7426]
[1725632012556,7.74,129.2,129.15,7.7426]
[1725632012958,19.3573,129.28,129.16,1.54812742]
[1725632013151,0.63846939,129.3,129.16,1.54812742]
[1725632013152,20.0,129.27,129.16,1.54812742]
[1725632013345,20.0,129.27,129.19,27.0907]
[1725632013547,19.3377,129.29,129.19,19.3505]
[1725632013769,20.0,129.28,129.16,19.3557]
[1725632013967,19.97906939,129.27,129.16,27.0977]
[1725632014281,20.63846939,129.26,129.09,21.081]
[1725632014447,19.3495,129.21,129.1,1.54834488]
[1725632014649,20.0,129.2,129.11,19.362]
[1725632014849,7.7406,129.19,129.11,20.91046357]
[1725632015074,7.7434,129.15,129.09,22.7464]
[1725632015249,7.7441,129.13,129.09,15.0]
[1725632015756,20.0,129.2,129.02,19.3763]
[1725632015757,0.63846939,129.12,129.02,19.3763]
[1725632015952,7.7477,129.08,129.02,27.1269]
[1725632016279,0.63846939,129.12,129.01,7.7513]
[1725632016280,7.7486,129.06,129.01,7.7513]
[1725632016574,20.0,129.05,128.96,19.3857]
[1725632016752,7.7507,129.02,128.96,19.3857]
[1725632017070,0.63846939,129.08,128.98,19.3814]
[1725632017272,0.63846939,129.08,129.0,19.3785]
[1725632017273,7.7489,129.05,129.0,19.3785]
[1725632017461,20.63846939,129.08,128.94,15.0]
[1725632017462,0.63846939,129.04,128.94,15.0]
[1725632017786,0.63846939,129.04,128.79,15.0]
[1725632017787,19.3879,128.95,128.8,19.4092]
[1725632017950,7.7577,128.91,128.83,7.762]
[1725632018155,7.7577,128.91,128.8,19.4092]
[1725632018156,23.91611617,129.0,128.85,50.0]
[1725632018358,23.91611617,129.0,128.88,50.0]
[1725632018359,3.89634678,129.0,128.88,50.0]
[1725632018567,27.7517,129.01,128.92,7.7563]
[1725632018766,45.0,129.0,128.85,50.0]
[1725632018959,7.7522,129.0,128.93,7.7557]
[1725632019161,7.7522,129.0,128.89,69.3953]
[1725632019162,19.3683,129.08,128.96,19.3857]
[1725632019382,19.3734,129.05,128.86,50.0]
[1725632019675,40.63846939,129.04,128.9,27.1509]
[1725632019880,19.3778,129.02,128.88,7.7588]
[1725632020072,34.34641547,129.01,128.88,7.7588]
[1725632020373,7.7545,128.96,128.87,7.7592]
[1725632020594,7.7569,128.92,128.83,7.7617]
[1725632020750,7.7569,128.92,128.82,19.4063]
[1725632020751,7.7569,128.92,128.84,1.55170026]
[1725632020957,7.7569,128.92,128.82,19.4063]
[1725632021258,13.85339492,129.0,128.86,50.0]
[1725632021584,13.85339492,129.0,128.91,7.7572]
[1725632021585,20.0,128.99,128.91,7.7572]
[1725632021893,21.60579492,129.0,128.93,7.7559]
[1725632022057,0.63846939,129.04,128.91,27.1492]
[1725632022384,38.7456,129.05,128.91,50.0]
[1725632022551,19.3923,129.07,128.9,50.0]
[1725632022552,0.63846939,129.04,128.9,50.0]
[1725632022753,19.3923,129.07,128.94,7.7553]
[1725632022754,0.63846939,129.06,128.94,7.7553]
[1725632022982,19.98904783,129.09,128.93,19.3893]
[1725632022983,7.7494,129.05,128.96,19.385]
[1725632023169,7.7503,129.03,128.96,27.1388]
[1725632023384,19.98904783,129.09,128.96,19.385]
[1725632023567,0.63846939,129.08,128.96,19.385]
[1725632023868,0.63846939,129.07,128.96,19.385]
[1725632024078,7.7519,129.0,128.93,7.7559]
[1725632024256,7.7544,128.96,128.88,7.7587]
[1725632024578,38.7447,129.05,128.86,19.4003]
[1725632024579,0.63846939,128.95,128.86,19.4003]
[1725632024785,10.0,129.04,128.86,19.4003]
[1725632024786,19.3799,129.0,128.86,19.4003]
[1725632024963,0.63846939,128.99,128.86,19.4003]
[1725632025156,38.7447,129.05,128.82,19.4062]
[1725632025157,19.385,128.97,128.82,19.4062]
[1725632025363,20.0,128.99,128.85,50.0]
[1725632025557,38.7447,129.05,128.85,50.0]
[1725632025558,7.7533,128.98,128.91,27.1495]
[1725632025756,0.63846939,129.03,128.91,27.1495]
[1725632026194,7.755,128.95,128.89,7.758]
[1725632026356,19.3835,128.98,128.87,19.3983]
[1725632026552,38.7601,129.0,128.9,19.3942]
[1725632026553,20.0,128.97,128.9,19.3942]
[1725632026781,19.38,129.0,128.9,19.3942]
[1725632026972,0.63846939,129.03,128.9,19.3942]
[1725632027175,7.751,129.02,128.93,19.3902]
[1725632027495,3.89634678,129.05,128.93,19.3902]
[1725632027654,3.89634678,129.05,128.95,19.3858]
[1725632027859,7.7501,129.03,128.97,7.7531]
[1725632028058,11.64554678,129.05,128.99,7.7524]
[1725632028268,13.39824783,129.09,129.03,7.7499]
[1725632028487,3.89634678,129.1,129.03,7.7499]
[1725632028672,7.7458,129.11,129.05,7.7488]
[1725632028995,13.398248,129.15,129.09,7.7465]
[1725632029155,28.62091102,129.17,129.09,7.7465]
[1725632029355,7.7404,129.2,129.07,50.0]
[1725632029569,13.60919126,129.24,129.14,19.3579]
[1725632029765,13.60919126,129.24,129.15,95.0]
[1725632030003,14.16634064,129.32,129.25,7.7368]
[1725632030197,13.609191,129.37,129.26,46.54638991]
[1725632030386,13.609191,129.37,129.27,1.54637467]
[1725632030588,13.80002697,129.4,129.26,19.3404]
[1725632030589,0.63846939,129.36,129.26,19.3404]
[1725632030786,7.7299,129.37,129.3,7.7337]
[1725632031093,0.63846939,129.39,129.26,19.3404]
[1725632031293,0.63846939,129.39,129.22,40.2392374]
[1725632031294,7.7324,129.33,129.25,7.7366]
[1725632031597,0.63846939,129.39,129.28,7.7351]
[1725632031803,0.63846939,129.41,129.29,1.54614933]
[1725632032097,7.7302,129.37,129.29,19.3351]
[1725632032297,0.9705068,129.42,129.3,46.54614517]
[1725632032463,7.7293,129.38,129.31,7.733]